[Event "11th LCC FIDE Open 2019"]
[Site "London"]
[Date "2019.12.05"]
[Round "8.16"]
[White "Taylor, Adam C"]
[Black "Villiers, Thomas"]
[Result "0-1"]
[ECO "A36"]
[WhiteElo "2371"]
[BlackElo "2145"]
[Annotator "NA RC"]
[PlyCount "96"]
[EventDate "2019.11.29"]
[EventType "swiss"]
[EventCountry "ENG"]
[SourceTitle "playchess.com"]
[Source "ChessBase"]
[SourceQuality "1"]
[TimeControl "40/5400+30:1800+30"]

1. c4 {[%emt 0:00:00]} g6 {[%emt 0:19:53]} 2. g3 {[%emt 0:00:01]} Bg7 {[%emt 0:00:45]} 3. Bg2 {[%emt 0:00:04]} c5 {[%emt 0:00:20]} 4. e3 {[%emt 0:00:15]} Nc6 {[%emt 0:00:14]} 5. Ne2 {[%emt 0:00:08]} Nf6 {[%emt 0:03:06]} 6. Nbc3 {[%emt 0:00:02]} O-O {[%emt 0:00:35]} 7. O-O {[%emt 0:00:07]} d6 {[%emt 0:00:21]} 8. b3 {[%emt 0:01:45]} Bf5 {[%emt 0:00:51]} 9. d3 {[%emt 0:01:10]} Qc8 {[%emt 0:01:24]} 10. Re1 {[%emt 0:03:35]} Ne5 {[%emt 0:01:08]} 11. Nf4 {[%emt 0:06:17]} g5 {[%emt 0:00:48]} 12. Nfd5 {[%emt 0:00:20]} Nxd5 {[%emt 0:00:12]} 13. Nxd5 {[%emt 0:00:27]} Re8 {[%emt 0:00:40]} 14. e4 {[%emt 0:12:59]} Bg4 {[%emt 0:00:47]} 15. Qd2 {[%emt 0:00:07]} Nf3+ {[%emt 0:02:12]} 16. Bxf3 {[%emt 0:00:29]} Bxf3 {[%emt 0:00:02]} 17. Qxg5 {[%emt 0:03:10]} h6 {[%emt 0:01:44]} 18. Qf4 {[%emt 0:00:27]} Bxa1 {[%emt 0:00:44]} 19. Qxf3 {[%emt 0:00:09]} Bg7 {[%emt 0:00:23]} 20. Qh5 {[%emt 0:01:41]} e6 {[%emt 0:01:30]} 21. Ne3 {[%emt 0:03:15]} f5 {[%emt 0:00:59]} 22. Rd1 {[%emt 0:24:28]} Rf8 {[%emt 0:02:53]} 23. exf5 {[%emt 0:03:33]} exf5 {[%emt 0:05:41]} 24. Nd5 {[%emt 0:00:36]} Qe8 {[%emt 0:00:01]} 25. Qf3 {[%emt 0:02:13]} Qf7 {[%emt 0:00:23]} 26. Bf4 {[%emt 0:02:15]} Rad8 {[%emt 0:00:08]} 27. Kh1 {[%emt 0:06:57]} Rfe8 {[%emt 0:01:12]} 28. Rg1 {[%emt 0:00:17]} Kh7 {[%emt 0:00:39]} 29. Be3 {[%emt 0:00:48]} Be5 {[%emt 0:04:07]} 30. g4 {[%emt 0:04:25]} Rg8 {[%emt 0:00:21]} 31. g5 {[%emt 0:00:17]} Rg6 {[%emt 0:03:18]} 32. h4 {[%emt 0:05:33]} f4 {[%emt 0:04:12]} 33. Qe4 {[%emt 0:10:23]} fxe3 {[%emt 0:02:55]} 34. f4 {[%emt 0:00:06]} Kh8 {[%emt 0:04:31]} 35. fxe5 {[%emt 0:03:11]} hxg5 {[%emt 0:03:18]} 36. Qxe3 {[%emt 0:03:41]} Re8 {[%emt 0:01:13]} 37. d4 {[%emt 0:02:36]} cxd4 {[%emt 0:00:20]} 38. Qxd4 {[%emt 0:00:38]} Qf3+ {[%emt 0:00:08]} 39. Kh2 {[%emt 0:00:02]} dxe5 {[%emt 0:02:45]} 40. Qc5 {[%emt 0:00:28]} Rh6 {[%emt 0:00:24]} 41. Rg2 {[%emt 0:01:51]} Rxh4+ {[%emt 0:00:07]} 42. Kg1 {[%emt 0:00:03]} Qd1+ {[%emt 0:01:12]} 43. Kf2 {[%emt 0:00:04]} Qd2+ {[%emt 0:00:07]} 44. Kg3 {[%emt 0:00:35]} Rg4+ {[%emt 0:00:58]} 45. Kxg4 {[%emt 0:00:08]} Qxg2+ {[%emt 0:00:03]} 46. Kf5 {[%emt 0:01:07]} Qf3+ {[%emt 0:00:11]} 47. Kg6 {[%emt 0:01:26]} Rg8+ {[%emt 0:00:03]} 48. Kh6 {[%emt 0:00:09]} Qh1# {[%emt 0:00:02]} 0-1

[Event "11th LCC FIDE Open 2019"]
[Site "London"]
[Date "2019.12.05"]
[Round "8.17"]
[White "Beinoras, Mindaugas"]
[Black "Russell, Christopher"]
[Result "1-0"]
[ECO "E20"]
[WhiteElo "2350"]
[BlackElo "2190"]
[Annotator "NA"]
[PlyCount "47"]
[EventDate "2019.11.29"]
[EventType "swiss"]
[EventCountry "ENG"]
[SourceTitle "playchess.com"]
[Source "ChessBase"]
[SourceQuality "1"]
[TimeControl "40/5400+30:1800+30"]

1. d4 {[%emt 0:00:00]} e6 {[%emt 0:15:10]} 2. c4 {[%emt 0:02:13]} Nf6 {[%emt 0:01:33]} 3. Nc3 {[%emt 0:00:09]} Bb4 {[%emt 0:00:42]} 4. f3 {[%emt 0:00:08]} c5 {[%emt 0:00:37]} 5. d5 {[%emt 0:00:32]} b5 {[%emt 0:00:24]} 6. Nh3 {[%emt 0:06:57]} bxc4 {[%emt 0:11:52]} 7. e4 {[%emt 0:00:14]} O-O {[%emt 0:05:35]} 8. Bxc4 {[%emt 0:02:36]} exd5 {[%emt 0:00:09]} 9. Bxd5 {[%emt 0:04:15]} Nxd5 {[%emt 0:00:51]} 10. Qxd5 {[%emt 0:00:17]} Ba6 {[%emt 0:00:53]} 11. Be3 {[%emt 0:08:43]} Qb6 {[%emt 0:08:57]} 12. Kf2 {[%emt 0:03:52]} Bxc3 {[%emt 0:07:55]} 13. bxc3 {[%emt 0:00:24]} Qb2+ {[%emt 0:00:50]} 14. Kg3 {[%emt 0:06:49]} Nc6 {[%emt 0:02:35]} 15. Bxc5 {[%emt 0:01:55]} Qxc3 {[%emt 0:18:15]} 16. Bxf8 {[%emt 0:01:03]} Rxf8 {[%emt 0:01:14]} 17. Rac1 {[%emt 0:04:25]} Qf6 {[%emt 0:01:29]} 18. Rhd1 {[%emt 0:00:13]} Re8 {[%emt 0:02:26]} 19. Qxd7 {[%emt 0:02:48]} Qe5+ {[%emt 0:06:24]} 20. f4 {[%emt 0:05:23]} Qxe4 {[%emt 0:02:00]} 21. Qxc6 {[%emt 0:00:34]} Qe2 {[%emt 0:00:48]} 22. Ng1 {[%emt 0:00:57]} Re3+ {[%emt 0:03:12]} 23. Nf3 {[%emt 0:00:13]} g5 {[%emt 0:01:44]} 24. fxg5 {[%emt 0:00:58]} 1-0

[Event "11th LCC FIDE Open 2019"]
[Site "London"]
[Date "2019.12.05"]
[Round "8.18"]
[White "Bates, Richard A"]
[Black "Yoon, Jacob D"]
[Result "1-0"]
[ECO "A40"]
[WhiteElo "2342"]
[BlackElo "2037"]
[Annotator "NA RC"]
[PlyCount "53"]
[EventDate "2019.11.29"]
[EventType "swiss"]
[EventCountry "ENG"]
[SourceTitle "playchess.com"]
[Source "ChessBase"]
[SourceQuality "1"]
[TimeControl "40/5400+30:1800+30"]

1. d4 {[%emt 0:01:33]} e6 {[%emt 0:00:06]} 2. c4 {[%emt 0:00:23]} b6 {[%emt 0:00:15]} 3. a3 {[%emt 0:04:29]} Bb7 {[%emt 0:00:38]} 4. Nc3 {[%emt 0:00:07]} f5 {[%emt 0:00:08]} 5. d5 {[%emt 0:01:25]} Nf6 {[%emt 0:16:16]} 6. e4 {[%emt 0:10:15]} fxe4 {[%emt 0:02:16]} 7. g4 {[%emt 0:00:29]} h6 {[%emt 0:10:00]} 8. Bg2 {[%emt 0:15:09]} exd5 {[%emt 0:04:35]} 9. cxd5 {[%emt 0:00:21]} Bc5 {[%emt 0:04:04]} 10. h4 {[%emt 0:09:16]} O-O {[%emt 0:19:02]} 11. Nh3 {[%emt 0:15:02]} c6 {[%emt 0:11:26]} 12. d6 {[%emt 0:07:53]} e3 {[%emt 0:06:48]} 13. Bxe3 {[%emt 0:09:34]} Bxe3 {[%emt 0:00:47]} 14. fxe3 {[%emt 0:02:42]} Nd5 {[%emt 0:01:01]} 15. Ne4 {[%emt 0:05:26]} Qxh4+ {[%emt 0:04:22]} 16. Nhf2 {[%emt 0:00:09]} Qd8 {[%emt 0:00:37]} 17. g5 {[%emt 0:00:12]} Rf7 {[%emt 0:05:33]} 18. Rh3 {[%emt 0:03:20]} Na6 {[%emt 0:03:01]} 19. b4 {[%emt 0:02:47]} Qe8 {[%emt 0:00:25]} 20. Ng4 {[%emt 0:03:56]} Qe6 {[%emt 0:02:28]} 21. gxh6 {[%emt 0:01:05]} Qg6 {[%emt 0:03:01]} 22. Ne5 {[%emt 0:01:27]} Qf5 {[%emt 0:01:04]} 23. Nxf7 {[%emt 0:00:46]} Qxf7 {[%emt 0:00:31]} 24. Rg3 {[%emt 0:00:40]} Qe6 {[%emt 0:00:48]} 25. Rxg7+ {[%emt 0:00:54]} Kh8 {[%emt 0:00:13]} 26. Qd4 {[%emt 0:00:15]} c5 {[%emt 0:00:41]} 27. Rh7+ {[%emt 0:00:19]} 1-0

[Event "11th LCC FIDE Open 2019"]
[Site "London"]
[Date "2019.12.05"]
[Round "8.19"]
[White "Bukojemski, Adam"]
[Black "Zujev, Oleg"]
[Result "0-1"]
[ECO "B11"]
[WhiteElo "2211"]
[BlackElo "2316"]
[Annotator "NA"]
[PlyCount "71"]
[EventDate "2019.11.29"]
[EventType "swiss"]
[EventCountry "ENG"]
[SourceTitle "playchess.com"]
[Source "ChessBase"]
[SourceQuality "1"]
[TimeControl "40/5400+30:1800+30"]

1. e4 {[%emt 0:02:09]} c6 {[%emt 0:00:00]} 2. Nf3 {[%emt 0:00:15]} d5 {[%emt 0:00:19]} 3. Nc3 {[%emt 0:00:10]} Bg4 {[%emt 0:00:28]} 4. h3 {[%emt 0:00:12]} Bxf3 {[%emt 0:00:06]} 5. Qxf3 {[%emt 0:00:05]} e6 {[%emt 0:00:05]} 6. g3 {[%emt 0:00:25]} d4 {[%emt 0:03:42]} 7. Ne2 {[%emt 0:00:10]} Nd7 {[%emt 0:00:34]} 8. Bg2 {[%emt 0:02:31]} Qb6 {[%emt 0:07:16]} 9. Qb3 {[%emt 0:04:50]} Qxb3 {[%emt 0:02:33]} 10. axb3 {[%emt 0:00:01]} d3 {[%emt 0:00:27]} 11. Nc3 {[%emt 0:01:51]} Nc5 {[%emt 0:03:26]} 12. b4 {[%emt 0:13:06]} Na6 {[%emt 0:00:48]} 13. Na2 {[%emt 0:00:34]} dxc2 {[%emt 0:01:25]} 14. d4 {[%emt 0:00:01]} Nxb4 {[%emt 0:07:07]} 15. Ke2 {[%emt 0:00:41]} Nf6 {[%emt 0:06:19]} 16. Be3 {[%emt 0:00:19]} Nxa2 {[%emt 0:01:56]} 17. Rxa2 {[%emt 0:00:02]} Be7 {[%emt 0:02:47]} 18. g4 {[%emt 0:01:44]} h6 {[%emt 0:02:21]} 19. b3 {[%emt 0:01:04]} O-O {[%emt 0:03:40]} 20. Rxc2 {[%emt 0:00:11]} Rfd8 {[%emt 0:00:47]} 21. f4 {[%emt 0:05:05]} Rd7 {[%emt 0:08:21]} 22. Bf3 {[%emt 0:03:05]} Ne8 {[%emt 0:04:47]} 23. h4 {[%emt 0:01:49]} Nc7 {[%emt 0:03:01]} 24. g5 {[%emt 0:03:53]} Nb5 {[%emt 0:02:30]} 25. gxh6 {[%emt 0:05:11]} gxh6 {[%emt 0:00:07]} 26. Kd3 {[%emt 0:02:30]} Nxd4 {[%emt 0:03:01]} 27. Bxd4 {[%emt 0:00:16]} Rad8 {[%emt 0:00:11]} 28. Rg2+ {[%emt 0:05:41]} Kf8 {[%emt 0:00:14]} 29. Kc2 {[%emt 0:01:35]} Rxd4 {[%emt 0:00:12]} 30. Rhg1 {[%emt 0:01:33]} Bf6 {[%emt 0:04:17]} 31. e5 {[%emt 0:02:52]} Bxh4 {[%emt 0:01:44]} 32. Rg8+ {[%emt 0:08:14]} Ke7 {[%emt 0:00:06]} 33. R8g4 {[%emt 0:00:28]} Bf2 {[%emt 0:00:58]} 34. Rh1 {[%emt 0:04:21]} Rd2+ {[%emt 0:00:36]} 35. Kb1 {[%emt 0:00:42]} R8d3 {[%emt 0:00:22]} 36. Be4 {[%emt 0:00:55]} 0-1

[Event "11th LCC FIDE Open 2019"]
[Site "London"]
[Date "2019.12.05"]
[Round "8.20"]
[White "Abrahams, Daniel"]
[Black "Cox, John J"]
[Result "0-1"]
[ECO "A21"]
[WhiteElo "2185"]
[BlackElo "2306"]
[Annotator "NA"]
[PlyCount "54"]
[EventDate "2019.11.29"]
[EventType "swiss"]
[EventCountry "ENG"]
[SourceTitle "playchess.com"]
[Source "ChessBase"]
[SourceQuality "1"]
[TimeControl "40/5400+30:1800+30"]

1. Nf3 {[%emt 1:12:32]} d6 {[%emt 0:01:46]} 2. c4 {[%emt 0:04:19]} e5 {[%emt 0:00:05]} 3. d4 {[%emt 0:00:17]} e4 {[%emt 0:00:13]} 4. Ng5 {[%emt 0:00:41]} f5 {[%emt 0:00:24]} 5. Nc3 {[%emt 0:00:36]} c6 {[%emt 0:00:07]} 6. Nh3 {[%emt 0:00:19]} Na6 {[%emt 0:01:12]} 7. Nf4 {[%emt 0:01:38]} Nf6 {[%emt 0:00:34]} 8. h4 {[%emt 0:00:57]} Nc7 {[%emt 0:07:36]} 9. Qb3 {[%emt 0:01:00]} Be7 {[%emt 0:07:24]} 10. e3 {[%emt 0:01:43]} Rb8 {[%emt 0:00:31]} 11. Be2 {[%emt 0:00:51]} Ne6 {[%emt 0:02:31]} 12. Nxe6 {[%emt 0:01:28]} Bxe6 {[%emt 0:00:08]} 13. d5 {[%emt 0:00:59]} Bf7 {[%emt 0:03:17]} 14. Qa4 {[%emt 0:00:45]} Nd7 {[%emt 0:23:39]} 15. dxc6 {[%emt 0:01:05]} bxc6 {[%emt 0:03:24]} 16. Qxc6 {[%emt 0:00:09]} O-O {[%emt 0:00:21]} 17. Nd5 {[%emt 0:10:53]} Ne5 {[%emt 0:10:39]} 18. Nxe7+ {[%emt 0:05:15]} Qxe7 {[%emt 0:03:24]} 19. Qa4 {[%emt 0:00:09]} f4 {[%emt 0:07:47]} 20. Qc2 {[%emt 0:13:05]} d5 {[%emt 0:07:18]} 21. cxd5 {[%emt 0:09:44]} f3 {[%emt 0:00:13]} 22. gxf3 {[%emt 0:00:13]} exf3 {[%emt 0:00:12]} 23. Bd3 {[%emt 0:00:19]} Rbc8 {[%emt 0:01:14]} 24. Qb3 {[%emt 0:05:11]} Qb4+ {[%emt 0:01:29]} 25. Bd2 {[%emt 0:00:46]} Qxb3 {[%emt 0:00:06]} 26. axb3 {[%emt 0:00:04]} Nxd3+ {[%emt 0:00:08]} 27. Kf1 {[%emt 0:00:05]} Rc2 {[%emt 0:01:08]} 0-1

[Event "11th LCC FIDE Open 2019"]
[Site "London"]
[Date "2019.12.05"]
[Round "8.23"]
[White "Berry, Neil"]
[Black "Tanmay Chopra"]
[Result "1/2-1/2"]
[ECO "E12"]
[WhiteElo "2250"]
[BlackElo "2082"]
[Annotator "NA"]
[PlyCount "50"]
[EventDate "2019.11.29"]
[EventType "swiss"]
[EventCountry "ENG"]
[SourceTitle "playchess.com"]
[Source "ChessBase"]
[SourceQuality "1"]
[TimeControl "40/5400+30:1800+30"]

1. d4 {[%emt 0:01:26]} Nf6 {[%emt 0:00:25]} 2. c4 {[%emt 0:00:19]} e6 {[%emt 0:00:44]} 3. Nf3 {[%emt 0:00:16]} b6 {[%emt 0:00:49]} 4. a3 {[%emt 0:01:39]} Bb7 {[%emt 0:00:18]} 5. Nc3 {[%emt 0:00:25]} d5 {[%emt 0:00:10]} 6. cxd5 {[%emt 0:00:55]} Nxd5 {[%emt 0:01:20]} 7. Qc2 {[%emt 0:00:25]} Be7 {[%emt 0:00:06]} 8. e4 {[%emt 0:01:47]} Nxc3 {[%emt 0:00:04]} 9. bxc3 {[%emt 0:00:07]} O-O {[%emt 0:00:15]} 10. Bd3 {[%emt 0:09:18]} c5 {[%emt 0:00:11]} 11. O-O {[%emt 0:02:52]} Qc8 {[%emt 0:03:55]} 12. d5 {[%emt 0:28:30]} c4 {[%emt 0:02:54]} 13. Be2 {[%emt 0:00:07]} exd5 {[%emt 0:00:51]} 14. exd5 {[%emt 0:02:03]} Bxd5 {[%emt 0:00:15]} 15. Rd1 {[%emt 0:00:22]} Qb7 {[%emt 0:05:14]} 16. Bg5 {[%emt 0:11:30]} Be4 {[%emt 0:06:17]} 17. Qd2 {[%emt 0:02:09]} Na6 {[%emt 0:12:25]} 18. Bxe7 {[%emt 0:09:39]} Qxe7 {[%emt 0:00:04]} 19. Qe3 {[%emt 0:00:31]} Nc5 {[%emt 0:04:55]} 20. Bxc4 {[%emt 0:04:11]} Qf6 {[%emt 0:03:31]} 21. Nd4 {[%emt 0:02:36]} Rac8 {[%emt 0:03:29]} 22. a4 {[%emt 0:05:12]} Bb7 {[%emt 0:00:48]} 23. Bb5 {[%emt 0:10:38]} a6 {[%emt 0:00:57]} 24. Bd3 {[%emt 0:01:30]} Rfe8 {[%emt 0:08:52]} 25. Qh3 {[%emt 0:00:08]} Nxd3 {[%emt 0:06:20]} 1/2-1/2

[Event "11th LCC FIDE Open 2019"]
[Site "London"]
[Date "2019.12.05"]
[Round "8.24"]
[White "Seymour, Timothy P"]
[Black "Lee, Qing Aun"]
[Result "1/2-1/2"]
[ECO "D42"]
[WhiteElo "2107"]
[BlackElo "2228"]
[Annotator "NA"]
[PlyCount "57"]
[EventDate "2019.11.29"]
[EventType "swiss"]
[EventCountry "ENG"]
[SourceTitle "playchess.com"]
[Source "ChessBase"]
[SourceQuality "1"]
[TimeControl "40/5400+30:1800+30"]

1. c4 {[%emt 0:00:00]} e6 {[%emt 0:00:30]} 2. Nf3 {[%emt 0:00:16]} Nf6 {[%emt 0:00:21]} 3. e3 {[%emt 0:00:19]} d5 {[%emt 0:00:19]} 4. Nc3 {[%emt 0:00:16]} c5 {[%emt 0:01:56]} 5. cxd5 {[%emt 0:00:19]} Nxd5 {[%emt 0:00:14]} 6. d4 {[%emt 0:03:52]} cxd4 {[%emt 0:02:19]} 7. exd4 {[%emt 0:00:37]} Nc6 {[%emt 0:01:21]} 8. Bd3 {[%emt 0:00:51]} Be7 {[%emt 0:01:46]} 9. O-O {[%emt 0:00:15]} O-O {[%emt 0:00:47]} 10. Re1 {[%emt 0:00:07]} Nxc3 {[%emt 0:13:25]} 11. bxc3 {[%emt 0:00:12]} Bf6 {[%emt 0:07:36]} 12. h4 {[%emt 0:15:49]} Bxh4 {[%emt 0:19:11]} 13. Nxh4 {[%emt 0:11:25]} Qxh4 {[%emt 0:00:08]} 14. Re4 {[%emt 0:00:55]} Qd8 {[%emt 0:02:10]} 15. Qh5 {[%emt 0:24:49]} g6 {[%emt 0:00:19]} 16. Qh6 {[%emt 0:03:08]} f5 {[%emt 0:01:21]} 17. Bg5 {[%emt 0:02:28]} Qe8 {[%emt 0:11:14]} 18. Re3 {[%emt 0:02:24]} Qf7 {[%emt 0:13:00]} 19. Rae1 {[%emt 0:02:00]} Bd7 {[%emt 0:05:45]} 20. d5 {[%emt 0:08:06]} Nd8 {[%emt 0:00:17]} 21. Bxd8 {[%emt 0:01:57]} Raxd8 {[%emt 0:00:13]} 22. dxe6 {[%emt 0:00:10]} Bxe6 {[%emt 0:00:07]} 23. Rxe6 {[%emt 0:00:15]} Rxd3 {[%emt 0:00:04]} 24. Re7 {[%emt 0:00:10]} Rd1 {[%emt 0:00:12]} 25. Qe3 {[%emt 0:04:32]} Rxe1+ {[%emt 0:00:41]} 26. Qxe1 {[%emt 0:00:01]} Qd5 {[%emt 0:00:45]} 27. c4 {[%emt 0:04:25]} Qxc4 {[%emt 0:03:10]} 28. Qa1 {[%emt 0:02:49]} Rf7 {[%emt 0:00:19]} 29. Re8+ {[%emt 0:00:02]} 1/2-1/2

[Event "11th LCC FIDE Open 2019"]
[Site "London"]
[Date "2019.12.05"]
[Round "8.25"]
[White "Willmoth, Robert F"]
[Black "Akots, Gabor"]
[Result "0-1"]
[ECO "D03"]
[WhiteElo "2108"]
[BlackElo "2221"]
[Annotator "NA"]
[PlyCount "54"]
[EventDate "2019.11.29"]
[EventType "swiss"]
[EventCountry "ENG"]
[SourceTitle "playchess.com"]
[Source "ChessBase"]
[SourceQuality "1"]
[TimeControl "40/5400+30:1800+30"]

1. d4 {[%emt 0:00:00]} d5 {[%emt 0:00:00]} 2. Nf3 {[%emt 0:00:00]} Nf6 {[%emt 0:00:00]} 3. Bg5 {[%emt 0:00:00]} Ne4 {[%emt 0:00:36]} 4. Bh4 {[%emt 0:00:08]} h5 {[%emt 0:00:44]} 5. Nfd2 {[%emt 0:09:19]} g5 {[%emt 0:02:33]} 6. Nxe4 {[%emt 0:00:24]} gxh4 {[%emt 0:00:06]} 7. Ned2 {[%emt 0:01:20]} Nc6 {[%emt 0:00:54]} 8. e3 {[%emt 0:02:11]} e5 {[%emt 0:05:31]} 9. dxe5 {[%emt 0:00:05]} Nxe5 {[%emt 0:00:27]} 10. h3 {[%emt 0:00:18]} Bf5 {[%emt 0:05:09]} 11. Nf3 {[%emt 0:07:30]} Nxf3+ {[%emt 0:05:09]} 12. gxf3 {[%emt 0:00:09]} Bg7 {[%emt 0:00:12]} 13. c3 {[%emt 0:00:23]} Qd7 {[%emt 0:00:12]} 14. Na3 {[%emt 0:09:30]} a6 {[%emt 0:07:36]} 15. Qb3 {[%emt 0:07:55]} O-O-O {[%emt 0:06:33]} 16. O-O-O {[%emt 0:01:37]} Rh6 {[%emt 0:07:57]} 17. e4 {[%emt 0:15:17]} Rb6 {[%emt 0:01:08]} 18. Qc2 {[%emt 0:06:55]} Bh6+ {[%emt 0:01:26]} 19. Kb1 {[%emt 0:00:40]} Qe7 {[%emt 0:10:30]} 20. exf5 {[%emt 0:09:06]} Qxa3 {[%emt 0:00:16]} 21. Ka1 {[%emt 0:00:25]} Qc5 {[%emt 0:04:05]} 22. Bd3 {[%emt 0:01:18]} Bg7 {[%emt 0:00:42]} 23. Rc1 {[%emt 0:00:39]} Bf6 {[%emt 0:07:59]} 24. Rhe1 {[%emt 0:00:55]} Qa5 {[%emt 0:01:08]} 25. f4 {[%emt 0:02:41]} c5 {[%emt 0:08:02]} 26. Qe2 {[%emt 0:01:24]} Kb8 {[%emt 0:02:07]} 27. Qxh5 {[%emt 0:08:55]} Rxb2 {[%emt 0:02:03]} 0-1

[Event "11th LCC FIDE Open 2019"]
[Site "London"]
[Date "2019.12.05"]
[Round "8.26"]
[White "Papadiamandis, Elliot"]
[Black "Wilks, Simon"]
[Result "1-0"]
[ECO "C03"]
[WhiteElo "2220"]
[BlackElo "2071"]
[Annotator "NA"]
[PlyCount "55"]
[EventDate "2019.11.29"]
[EventType "swiss"]
[EventCountry "ENG"]
[SourceTitle "playchess.com"]
[Source "ChessBase"]
[SourceQuality "1"]
[TimeControl "40/5400+30:1800+30"]

1. e4 {[%emt 2:40:36]} e6 {[%emt 0:07:22]} 2. d4 {[%emt 0:00:25]} d5 {[%emt 0:00:04]} 3. Nd2 {[%emt 0:00:09]} a6 {[%emt 0:00:45]} 4. c3 {[%emt 0:01:44]} c5 {[%emt 0:02:00]} 5. dxc5 {[%emt 0:01:46]} Nf6 {[%emt 0:05:52]} 6. exd5 {[%emt 0:02:34]} Qxd5 {[%emt 0:01:03]} 7. b4 {[%emt 0:02:50]} a5 {[%emt 0:05:44]} 8. Ngf3 {[%emt 0:06:14]} Nc6 {[%emt 0:02:45]} 9. Bc4 {[%emt 0:11:41]} Qh5 {[%emt 0:01:36]} 10. Rb1 {[%emt 0:01:33]} Bd7 {[%emt 0:03:28]} 11. O-O {[%emt 0:01:59]} Be7 {[%emt 0:00:35]} 12. Re1 {[%emt 0:02:24]} O-O {[%emt 0:02:06]} 13. b5 {[%emt 0:00:49]} Na7 {[%emt 0:00:50]} 14. Re5 {[%emt 0:02:34]} Qg6 {[%emt 0:00:36]} 15. Rg5 {[%emt 0:03:53]} Qh6 {[%emt 0:00:10]} 16. Nf1 {[%emt 0:01:33]} Rfd8 {[%emt 0:11:10]} 17. Qe2 {[%emt 0:07:01]} g6 {[%emt 0:02:37]} 18. c6 {[%emt 0:01:20]} bxc6 {[%emt 0:09:50]} 19. b6 {[%emt 0:01:07]} Qf8 {[%emt 0:00:27]} 20. bxa7 {[%emt 0:00:52]} Rxa7 {[%emt 0:00:57]} 21. Ne5 {[%emt 0:02:11]} Be8 {[%emt 0:01:52]} 22. Rg3 {[%emt 0:01:09]} Nd5 {[%emt 0:03:13]} 23. Bxd5 {[%emt 0:04:39]} cxd5 {[%emt 0:00:51]} 24. Be3 {[%emt 0:01:33]} Raa8 {[%emt 0:02:18]} 25. Ng4 {[%emt 0:02:32]} f6 {[%emt 0:05:56]} 26. Bh6 {[%emt 0:05:44]} Qf7 {[%emt 0:00:07]} 27. Bg5 {[%emt 0:00:27]} Kh8 {[%emt 0:01:45]} 28. Rf3 {[%emt 0:00:36]} 1-0

[Event "11th LCC FIDE Open 2019"]
[Site "London"]
[Date "2019.12.05"]
[Round "8.27"]
[White "Marusenko, Petr"]
[Black "Dong, Bao Nghia"]
[Result "0-1"]
[ECO "A58"]
[WhiteElo "2085"]
[BlackElo "2217"]
[Annotator "NA"]
[PlyCount "58"]
[EventDate "2019.11.29"]
[EventType "swiss"]
[EventCountry "ENG"]
[SourceTitle "playchess.com"]
[Source "ChessBase"]
[SourceQuality "1"]
[TimeControl "40/5400+30:1800+30"]

1. d4 {[%emt 0:00:00]} Nf6 {[%emt 0:22:46]} 2. c4 {[%emt 0:00:00]} c5 {[%emt 0:00:13]} 3. d5 {[%emt 0:00:00]} b5 {[%emt 0:00:05]} 4. cxb5 {[%emt 0:00:00]} a6 {[%emt 0:00:02]} 5. bxa6 {[%emt 0:00:00]} Bxa6 {[%emt 0:00:02]} 6. g3 {[%emt 0:00:07]} d6 {[%emt 0:00:04]} 7. Bg2 {[%emt 0:00:09]} g6 {[%emt 0:00:05]} 8. b3 {[%emt 0:00:03]} Bg7 {[%emt 0:00:04]} 9. Bb2 {[%emt 0:00:02]} O-O {[%emt 0:00:14]} 10. Nf3 {[%emt 0:00:06]} Qa5+ {[%emt 0:01:40]} 11. Bc3 {[%emt 0:00:13]} Qb5 {[%emt 0:00:03]} 12. Nfd2 {[%emt 0:19:06]} Qb7 {[%emt 0:04:04]} 13. O-O {[%emt 0:11:58]} Nbd7 {[%emt 0:00:41]} 14. Nc4 {[%emt 0:01:16]} Bxc4 {[%emt 0:00:20]} 15. bxc4 {[%emt 0:00:06]} Nb6 {[%emt 0:00:13]} 16. a4 {[%emt 0:09:25]} Nxc4 {[%emt 0:00:40]} 17. a5 {[%emt 0:00:22]} Rfb8 {[%emt 0:00:30]} 18. Nd2 {[%emt 0:01:40]} Qa6 {[%emt 0:02:58]} 19. Re1 {[%emt 0:04:58]} Nxd2 {[%emt 0:04:03]} 20. Qxd2 {[%emt 0:00:11]} Rb3 {[%emt 0:00:04]} 21. Rac1 {[%emt 0:01:15]} Nd7 {[%emt 0:01:41]} 22. Bxg7 {[%emt 0:00:22]} Kxg7 {[%emt 0:00:03]} 23. Ra1 {[%emt 0:04:02]} Ne5 {[%emt 0:04:08]} 24. Ra4 {[%emt 0:03:23]} Rab8 {[%emt 0:01:18]} 25. Bf1 {[%emt 0:05:57]} Rb2 {[%emt 0:01:18]} 26. Qc1 {[%emt 0:00:22]} c4 {[%emt 0:04:16]} 27. h3 {[%emt 0:04:43]} R8b3 {[%emt 0:01:01]} 28. Kh2 {[%emt 0:00:39]} Qa7 {[%emt 0:00:20]} 29. Kg2 {[%emt 0:00:59]} Rf3 {[%emt 0:00:33]} 0-1

[Event "11th LCC FIDE Open 2019"]
[Site "London"]
[Date "2019.12.05"]
[Round "8.28"]
[White "Balaji, Aaravamudhan"]
[Black "Rocco, Federico"]
[Result "1-0"]
[ECO "E29"]
[WhiteElo "2080"]
[BlackElo "2207"]
[Annotator "NA"]
[PlyCount "61"]
[EventDate "2019.11.29"]
[EventType "swiss"]
[EventCountry "ENG"]
[SourceTitle "playchess.com"]
[Source "ChessBase"]
[SourceQuality "1"]
[TimeControl "40/5400+30:1800+30"]

1. d4 {[%emt 0:00:00]} Nf6 {[%emt 0:00:52]} 2. c4 {[%emt 0:00:00]} e6 {[%emt 0:00:04]} 3. Nc3 {[%emt 0:00:11]} Bb4 {[%emt 0:00:06]} 4. a3 {[%emt 0:00:03]} Bxc3+ {[%emt 0:00:05]} 5. bxc3 {[%emt 0:00:03]} c5 {[%emt 0:00:52]} 6. e3 {[%emt 0:00:09]} O-O {[%emt 0:01:38]} 7. Bd3 {[%emt 0:00:12]} d6 {[%emt 0:00:27]} 8. Ne2 {[%emt 0:00:29]} Nc6 {[%emt 0:00:22]} 9. e4 {[%emt 0:01:23]} b6 {[%emt 0:02:28]} 10. Bg5 {[%emt 0:01:55]} e5 {[%emt 0:03:32]} 11. d5 {[%emt 0:09:30]} Na5 {[%emt 0:00:07]} 12. O-O {[%emt 0:04:27]} h6 {[%emt 0:04:31]} 13. Bh4 {[%emt 0:05:12]} Ba6 {[%emt 0:01:38]} 14. f4 {[%emt 0:01:41]} exf4 {[%emt 0:00:42]} 15. Nxf4 {[%emt 0:00:35]} g5 {[%emt 0:03:23]} 16. Nh5 {[%emt 0:02:19]} Ne8 {[%emt 0:01:50]} 17. e5 {[%emt 0:07:57]} Bxc4 {[%emt 0:13:18]} 18. Nf6+ {[%emt 0:13:23]} Nxf6 {[%emt 0:26:47]} 19. exf6 {[%emt 0:00:14]} Qe8 {[%emt 0:02:41]} 20. Re1 {[%emt 0:09:13]} Qd8 {[%emt 0:05:27]} 21. Bxg5 {[%emt 0:03:18]} Re8 {[%emt 0:02:27]} 22. Rxe8+ {[%emt 0:13:44]} Qxe8 {[%emt 0:00:06]} 23. Bf4 {[%emt 0:01:00]} Qc8 {[%emt 0:14:24]} 24. Bxc4 {[%emt 0:02:09]} Nxc4 {[%emt 0:04:26]} 25. Qd3 {[%emt 0:03:32]} Ne5 {[%emt 0:01:54]} 26. Bxe5 {[%emt 0:00:25]} dxe5 {[%emt 0:00:05]} 27. Qg3+ {[%emt 0:00:38]} Kf8 {[%emt 0:00:04]} 28. Qg7+ {[%emt 0:00:47]} Ke8 {[%emt 0:00:05]} 29. Rd1 {[%emt 0:04:20]} Kd8 {[%emt 0:02:01]} 30. Qxf7 {[%emt 0:01:34]} Qd7 {[%emt 0:00:26]} 31. Qg8+ {[%emt 0:00:28]} 1-0